fUST/lending_fUST_20241230
["ID","MTS","AMOUNT","RATE_DAILY","PERIOD"]
[347159378,1735530643772,-500.0,0.00013601,2]
[347159379,1735530643782,-567.09623931,0.00013601,2]
[347159380,1735530643792,-500.0,0.00013601,2]
[347159381,1735530643801,-500.0,0.00013601,2]
[347159382,1735530643810,-500.0,0.00013601,2]
[347159383,1735530643819,-500.65827239,0.00013601,2]
[347159384,1735530643828,-500.0,0.00013601,2]
[347159385,1735530643838,-500.0,0.00013601,2]
[347159386,1735530643847,-501.1839175,0.00013601,2]
[347159387,1735530643856,-500.0,0.00013601,2]
[347159388,1735530643866,-500.0,0.00013601,2]
[347159389,1735530643875,-500.0,0.00013601,2]
[347159390,1735530643884,-500.0,0.00013601,2]
[347159396,1735530643893,-501.11481118,0.00013601,2]
[347159397,1735530643966,-501.11752852,0.00013601,2]
[347159399,1735530643975,-500.0,0.00013601,2]
[347159401,1735530643984,-500.0,0.00013601,2]
[347159402,1735530643993,-500.0,0.00013601,2]
[347159404,1735530644002,-500.0,0.00013601,2]
[347159406,1735530644011,-502.23939967,0.00013601,2]
[347159408,1735530644020,-500.0,0.00013601,2]
[347159410,1735530644030,-500.0,0.00013601,2]
[347159411,1735530644039,-500.0,0.00013601,2]
[347159412,1735530644049,-500.0,0.00013601,2]
[347159413,1735530644060,-500.0,0.00013601,2]
[347159414,1735530644070,-500.0,0.00013601,2]
[347159415,1735530644079,-500.0,0.00013601,2]
[347159416,1735530644089,-500.0,0.00013601,2]
[347159417,1735530644098,-500.0,0.00013601,2]
[347159418,1735530644107,-500.35990115,0.00013601,2]
[347159419,1735530644117,-500.0,0.00013601,2]
[347159420,1735530644126,-483.1560934,0.00013601,2]
[347159421,1735530644135,-493.63244382,0.00013601,2]
[347159422,1735530644144,-500.27643206,0.00013601,2]
[347159423,1735530644153,-500.0,0.00013601,2]
[347159424,1735530644163,-500.65474793,0.00013601,2]
[347159425,1735530644172,-500.0,0.00013601,2]
[347159426,1735530644181,-500.0,0.00013601,2]
[347159427,1735530644192,-500.0,0.00013601,2]
[347159428,1735530644203,-500.0,0.00013601,2]
[347159429,1735530644212,-500.0,0.00013601,2]
[347159430,1735530644222,-500.0,0.00013601,2]
[347159431,1735530644231,-500.0,0.00013601,2]
[347159432,1735530644240,-500.0,0.00013601,2]
[347159433,1735530644250,-500.0,0.00013601,2]
[347159434,1735530644259,-500.0,0.00013601,2]
[347159435,1735530644268,-500.0,0.00013601,2]
[347159436,1735530644278,-500.0,0.00013601,2]
[347159437,1735530644287,-500.0,0.00013601,2]
[347159438,1735530644297,-500.0,0.00013601,2]
[347159439,1735530644306,-500.0,0.00013601,2]
[347159440,1735530644315,-500.0,0.00013601,2]
[347159441,1735530644324,-500.0,0.00013601,2]
[347159442,1735530644333,-500.0,0.00013601,2]
[347159443,1735530644343,-500.0,0.00013601,2]
[347159444,1735530644352,-505.74791748,0.00013601,2]
[347159445,1735530644361,-500.0,0.00013601,2]
[347159446,1735530644370,-500.0,0.00013601,2]
[347159447,1735530644379,-500.0,0.00013601,2]
[347159448,1735530644388,-500.0,0.00013601,2]
[347159449,1735530644397,-500.0,0.00013601,2]
[347159450,1735530644407,-570.43356481,0.00013601,2]
[347159451,1735530644416,-500.0,0.00013601,2]
[347159452,1735530644426,-500.0,0.00013601,2]
[347159453,1735530644435,-500.0,0.00013601,2]
[347159454,1735530644445,-500.0,0.00013601,2]
[347159455,1735530644454,-500.0,0.00013601,2]
[347159456,1735530644465,-500.0,0.00013601,2]
[347159457,1735530644475,-495.52,0.00013601,2]
[347159458,1735530644485,-500.0,0.00013601,2]
[347159459,1735530644495,-500.0,0.00013601,2]
[347159460,1735530644504,-500.0,0.00013601,2]
[347159461,1735530644514,-500.0,0.00013601,2]
[347159462,1735530644524,-500.0,0.00013601,2]
[347159463,1735530644533,-500.0,0.00013601,2]
[347159464,1735530644546,-500.0,0.00013601,2]
[347159465,1735530644555,-500.0,0.00013601,2]
[347159466,1735530644564,-500.0,0.00013601,2]
[347159467,1735530644574,-500.0,0.00013601,2]
[347159468,1735530644583,-500.0,0.00013601,2]
[347159469,1735530644593,-500.0,0.00013601,2]
[347159470,1735530644602,-500.0,0.00013601,2]
[347159471,1735530644613,-500.0,0.00013601,2]
[347159472,1735530644623,-500.0,0.00013601,2]
[347159473,1735530644632,-500.0,0.00013601,2]
[347159474,1735530644641,-500.0,0.00013601,2]
[347159475,1735530644651,-500.0,0.00013601,2]
[347159476,1735530644660,-500.0,0.00013601,2]
[347159477,1735530644669,-313.13781388,0.00013601,2]
[347159478,1735530644678,-500.0,0.00013601,2]
[347159479,1735530644686,-500.0,0.00013601,2]
[347159480,1735530644695,-267.59197443,0.00013601,2]
[347159481,1735530644705,-501.99199146,0.00013601,2]
[347159482,1735530644714,-500.0,0.00013601,2]
[347159483,1735530644723,-500.7511855,0.00013601,2]
[347159484,1735530644732,-502.23782275,0.00013601,2]
[347159485,1735530644741,-500.0,0.00013601,2]
[347159486,1735530644751,-500.0,0.00013601,2]
[347159487,1735530644760,-500.0,0.00013601,2]
[347159488,1735530644769,-500.0,0.00013601,2]
[347159489,1735530644779,-500.0,0.00013601,2]
[347159490,1735530644789,-500.0,0.00013601,2]
[347159491,1735530644798,-500.0,0.00013601,2]
[347159492,1735530644808,-500.0,0.00013601,2]
[347159493,1735530644817,-500.0,0.00013601,2]
[347159494,1735530644827,-501.42680683,0.00013601,2]
[347159495,1735530644836,-500.0,0.00013601,2]
[347159496,1735530644846,-500.0,0.00013601,2]
[347159497,1735530644855,-500.0,0.00013601,2]
[347159498,1735530644864,-501.2332454,0.00013601,2]
[347159499,1735530644873,-500.0,0.00013601,2]
[347159500,1735530644883,-500.0,0.00013601,2]
[347159501,1735530644893,-500.0,0.00013601,2]
[347159502,1735530644903,-500.0,0.00013601,2]
[347159503,1735530644912,-500.0,0.00013601,2]
[347159504,1735530644921,-500.0,0.00013601,2]
[347159505,1735530644931,-500.0,0.00013601,2]
[347159506,1735530644941,-500.0,0.00013601,2]
[347159507,1735530644951,-500.0,0.00013601,2]
[347159508,1735530644960,-500.0,0.00013601,2]
[347159509,1735530644969,-500.0,0.00013601,2]
[347159510,1735530644979,-500.0,0.00013601,2]
[347159511,1735530644988,-500.0,0.00013601,2]
[347159512,1735530644997,-500.0,0.00013601,2]
[347159513,1735530645007,-500.89251274,0.00013601,2]
[347159514,1735530645016,-500.0,0.00013601,2]
[347159515,1735530645025,-500.0,0.00013601,2]
[347159516,1735530645035,-500.0,0.00013601,2]
[347159517,1735530645044,-500.0,0.00013601,2]
[347159518,1735530645053,-500.0,0.00013601,2]
[347159519,1735530645062,-501.0635282,0.00013601,2]
[347159520,1735530645071,-500.92555014,0.00013601,2]
[347159521,1735530645080,-500.0,0.00013601,2]
[347159522,1735530645090,-500.0,0.00013601,2]
[347159523,1735530645099,-500.0,0.00013601,2]
[347159524,1735530645108,-500.0,0.00013601,2]
[347159525,1735530645118,-500.0,0.00013601,2]
[347159526,1735530645127,-500.37157385,0.00013601,2]
[347159527,1735530645136,-500.0,0.00013601,2]
[347159528,1735530645145,-500.0,0.00013601,2]
[347159529,1735530645154,-501.72630372,0.00013601,2]
[347159530,1735530645163,-500.0,0.00013601,2]
[347159531,1735530645173,-500.0,0.00013601,2]
[347159532,1735530645182,-502.04418881,0.00013601,2]
[347159533,1735530645191,-502.26321738,0.00013601,2]
[347159534,1735530645200,-501.52530935,0.00013601,2]
[347159535,1735530645209,-500.0,0.00013601,2]
[347159536,1735530645219,-503.81761922,0.00013601,2]
[347159537,1735530645228,-500.0,0.00013601,2]
[347159538,1735530645237,-500.0,0.00013601,2]
[347159539,1735530645247,-405.05910757,0.00013601,2]
[347159540,1735530645256,-500.0,0.00013601,2]
[347159541,1735530645265,-501.60378458,0.00013601,2]
[347159542,1735530645276,-500.0,0.00013601,2]
[347159543,1735530645285,-501.44509434,0.00013601,2]
[347159544,1735530645294,-502.08830781,0.00013601,2]
[347159545,1735530645304,-500.26217952,0.00013601,2]
[347159546,1735530645313,-500.0,0.00013601,2]
[347159547,1735530645323,-491.61836905,0.00013601,2]
[347159548,1735530645332,-500.0,0.00013601,2]
[347159549,1735530645342,-500.0,0.00013601,2]
[347159550,1735530645352,-502.44979427,0.00013601,2]
[347159551,1735530645361,-500.0,0.00013601,2]
[347159552,1735530645370,-500.0,0.00013601,2]
[347159553,1735530645380,-500.63910951,0.00013601,2]
[347159554,1735530645390,-363.30281205,0.00013601,2]
[347159555,1735530645461,-500.0,0.00013601,2]
[347159556,1735530645474,-500.0,0.00013601,2]
[347159557,1735530645483,-500.0,0.00013601,2]
[347159558,1735530645492,-500.0,0.00013601,2]
[347159559,1735530645501,-511.74190359,0.00013601,2]
[347159560,1735530645513,-500.0,0.00013601,2]
[347159561,1735530645523,-503.12843763,0.00013601,2]
[347159562,1735530645534,-270.33950607,0.00013601,2]
[347159563,1735530645545,-501.24846821,0.00013601,2]
[347159564,1735530645554,-500.0,0.00013601,2]
[347159565,1735530645563,-507.10366578,0.00013601,2]
[347159566,1735530645573,-466.4711778,0.00013601,2]
[347159567,1735530645582,-500.0,0.00013601,2]
[347159568,1735530645591,-500.62026425,0.00013601,2]
[347159569,1735530645600,-500.0,0.00013601,2]
[347159570,1735530645609,-500.0,0.00013601,2]
[347159571,1735530645619,-500.0,0.00013601,2]
[347159572,1735530645628,-500.0,0.00013601,2]
[347159573,1735530645637,-500.0,0.00013601,2]
[347159574,1735530645647,-500.75633386,0.00013601,2]
[347159575,1735530645656,-500.0,0.00013601,2]
[347159576,1735530645665,-500.0,0.00013601,2]
[347159577,1735530645675,-500.0,0.00013601,2]
[347159578,1735530645684,-500.9359534,0.00013601,2]
[347159579,1735530645693,-625.36104925,0.00013601,2]
[347159580,1735530645703,-501.14956778,0.00013601,2]
[347159581,1735530645712,-500.0,0.00013601,2]
[347159582,1735530645721,-500.57479648,0.00013601,2]
[347159583,1735530645731,-502.04632583,0.00013601,2]
[347159584,1735530645740,-500.0,0.00013601,2]
[347159585,1735530645749,-500.0,0.00013601,2]
[347159586,1735530645758,-500.0,0.00013601,2]
[347159587,1735530645768,-500.0,0.00013601,2]
[347159588,1735530645779,-500.0,0.00013601,2]
[347159589,1735530645788,-502.28296245,0.00013602,2]
[347159590,1735530645798,-500.0,0.00013602,2]
[347159591,1735530645807,-500.0,0.00013602,2]
[347159592,1735530645816,-507.04536,0.00013602,2]
[347159593,1735530645825,-400.63628572,0.00013602,2]
[347159594,1735530645835,-500.0,0.00013602,2]
[347159595,1735530645843,-500.0,0.00013602,2]
[347159596,1735530645852,-515.67407444,0.00013602,2]
[347159597,1735530645861,-596.57262671,0.00013602,2]
[347159598,1735530645870,-550.37284806,0.00013602,2]
[347159599,1735530645879,-501.34607542,0.00013602,2]
[347159600,1735530645888,-500.27676719,0.00013602,2]
[347159601,1735530645897,-500.68782716,0.00013602,2]
[347159602,1735530645907,-500.0,0.00013602,2]
[347159603,1735530645916,-443.62502219,0.00013602,2]
[347159604,1735530645926,-501.62376073,0.00013602,2]
[347159605,1735530645935,-501.44856456,0.00013602,2]
[347159606,1735530645944,-500.0,0.00013603,2]
[347159607,1735530645953,-500.0,0.00013604,2]
[347159608,1735530645962,-500.0,0.00013604,2]
[347159609,1735530645971,-500.0,0.00013604,2]
[347159610,1735530645980,-500.0,0.00013604,2]
[347159611,1735530645989,-500.0,0.00013604,2]
[347159612,1735530645999,-500.0,0.00013604,2]
[347159613,1735530646008,-500.0,0.00013604,2]
[347159614,1735530646017,-2614.02,0.00013604,2]
[347159615,1735530646028,-619.6791138,0.00013604,2]
[347159616,1735530646037,-646.94,0.00013604,2]
[347159617,1735530646046,-500.0,0.00013605,2]
[347159618,1735530646055,-500.0,0.00013605,2]
[347159619,1735530646064,-500.0,0.00013673,2]
[347159620,1735530646073,-500.0,0.00013673,2]
[347159621,1735530646082,-502.41149017,0.00013673,2]
[347159622,1735530646091,-500.0,0.00013673,2]
[347159623,1735530646100,-188.23020643,0.00013673,2]
[347159624,1735530646109,-179.59501156,0.00013673,2]
[347159625,1735530646119,-527.06673634,0.00013673,2]
[347159626,1735530646128,-502.00796745,0.00013673,2]
[347159628,1735530646140,-501.50112158,0.00013673,2]
[347159629,1735530646149,-500.0,0.00013673,2]
[347159630,1735530646158,-502.92238806,0.00013673,2]
[347159632,1735530646167,-505.06964362,0.00013673,2]
[347159633,1735530646175,-215.62574982,0.00013673,2]
[347159634,1735530646185,-500.0,0.00013698,2]
[347159635,1735530646194,-199.679434,0.00013699,2]
[347159636,1735530646203,-634.33105029,0.00013699,2]
[347159637,1735530646212,-640.73843463,0.00013699,2]
[347159638,1735530646221,-640.73843463,0.00013699,2]
[347159639,1735530646230,-640.73843463,0.00013699,2]
[347159640,1735530646239,-500.0,0.00013699,2]
[347159641,1735530646248,-500.0,0.00013699,2]
[347159642,1735530646257,-500.0,0.00013699,2]
[347159643,1735530646267,-500.0,0.00013699,2]
[347159644,1735530646276,-500.0,0.00013699,2]
[347159645,1735530646284,-500.0,0.00013699,2]
[347159646,1735530646294,-500.0,0.00013699,2]
[347159647,1735530646303,-543.09003385,0.00013699,2]
[347159648,1735530646312,-500.0,0.00013699,2]
[347159649,1735530646321,-500.0,0.00013699,2]
[347159650,1735530646330,-500.0,0.00013699,2]
[347159651,1735530646339,-500.0,0.00013699,2]
[347159652,1735530646348,-500.0,0.00013699,2]
[347159653,1735530646358,-500.0,0.00013699,2]
[347159654,1735530646367,-472.19208859,0.00013699,2]
[347159655,1735530646377,-500.0,0.00013872,2]
[347159656,1735530646386,-500.0,0.00013872,2]
[347159657,1735530646395,-732.88,0.00013872,2]
[347159658,1735530646404,-500.0,0.00013872,2]
[347159659,1735530646414,-500.0,0.00013872,2]
[347159660,1735530646426,-500.0,0.00013872,2]
[347159661,1735530646435,-492.2439585,0.00013872,2]
[347159662,1735530646445,-161.76625124,0.00013872,2]
[347159663,1735530646454,-501.35852675,0.00013872,2]
[347159664,1735530646465,-822.24,0.00013872,2]
[347159665,1735530646474,-500.0,0.00013872,2]
[347159666,1735530646483,-500.0,0.00013873,2]
[347159667,1735530646493,-500.68052591,0.00013873,2]
[347159668,1735530646502,-501.89350369,0.00013873,2]
[347159669,1735530646514,-500.0,0.00013873,2]
[347159670,1735530646523,-500.0,0.00013873,2]
[347159671,1735530646535,-501.01441142,0.00013873,2]
[347159673,1735530646544,-500.0,0.00013873,2]
[347159674,1735530646554,-504.33977082,0.00013873,2]
[347159676,1735530646564,-268.7287307,0.00013873,2]
[347159678,1735530646574,-2614.02,0.00013873,2]
[347159680,1735530646583,-2614.02,0.00013873,2]
[347159682,1735530646592,-609.45,0.00013873,2]
[347159684,1735530646602,-731.92,0.00013873,2]
[347159686,1735530646612,-500.0,0.00013873,2]
[347159688,1735530646621,-500.0,0.00013873,2]
[347159690,1735530646631,-500.0,0.00013873,2]
[347159693,1735530646641,-500.0,0.00013873,2]
[347159695,1735530646650,-500.0,0.00013873,2]
[347159697,1735530646659,-500.0,0.00013873,2]
[347159699,1735530646669,-500.0,0.00013873,2]
[347159701,1735530646678,-500.0,0.00013873,2]
[347159703,1735530646688,-255.25,0.00013873,2]
[347159705,1735530646697,-1303.74,0.00013873,2]
[347159707,1735530646706,-500.0,0.00013873,2]
[347159709,1735530646715,-500.0,0.00013873,2]
[347159711,1735530646724,-500.0,0.00013873,2]
[347159713,1735530646734,-503.75319422,0.00013873,2]
[347159715,1735530646743,-500.0,0.00013873,2]
[347159717,1735530646752,-500.0,0.00013873,2]
[347159719,1735530646761,-747.33,0.00013873,2]
[347159721,1735530646771,-500.0,0.00013873,2]
[347159723,1735530646782,-500.0,0.00013873,2]
[347159732,1735530646854,-500.0,0.00013873,2]
[347159734,1735530646863,-504.73341727,0.00013873,2]
[347159736,1735530646873,-500.0,0.00013873,2]
[347159738,1735530646882,-506.51903146,0.00013873,2]
[347159740,1735530646891,-358.61750998,0.00013873,2]
[347159742,1735530646900,-500.0,0.00013873,2]
[347159744,1735530646909,-500.0,0.00013873,2]
[347159746,1735530646918,-500.0,0.00013873,2]
[347159748,1735530646927,-500.0,0.00013873,2]
[347159750,1735530646936,-834.58,0.00013873,2]
[347159752,1735530646945,-466.0,0.00013873,2]
[347159754,1735530646954,-500.0,0.00013873,2]
[347159756,1735530646963,-347.28108892,0.00013873,2]
[347159758,1735530646973,-500.0,0.00013873,2]
[347159760,1735530646983,-500.0,0.00013873,2]
[347159762,1735530646992,-500.0,0.00013873,2]
[347159764,1735530647000,-500.0,0.00013873,2]
[347159766,1735530647010,-500.0,0.00013873,2]
[347159768,1735530647019,-500.0,0.00013873,2]
[347159770,1735530647030,-500.0,0.00013873,2]
[347159772,1735530647039,-500.0,0.00013873,2]
[347159774,1735530647047,-524.66289064,0.00013873,2]
[347159776,1735530647057,-500.0,0.00013873,2]
[347159778,1735530647066,-6520.49,0.00013873,2]
[347159780,1735530647075,-491.32767809,0.00013873,2]
[347159782,1735530647084,-500.0,0.00013873,2]
[347159784,1735530647093,-500.0,0.00013873,2]
[347159786,1735530647102,-501.08374099,0.00013874,2]
[347159788,1735530647111,-500.42203127,0.00013874,2]
[347159790,1735530647120,-501.74947503,0.00013874,2]
[347159792,1735530647130,-500.0,0.00013874,2]
[347159794,1735530647139,-504.2998438,0.00013874,2]
[347159796,1735530647149,-500.71698057,0.00013874,2]
[347159798,1735530647158,-500.55749107,0.00013874,2]
[347159800,1735530647167,-500.0,0.00013874,2]
[347159802,1735530647177,-500.0,0.00013874,2]
[347159804,1735530647186,-500.0,0.00013874,2]
[347159806,1735530647195,-500.0,0.00013874,2]
[347159808,1735530647205,-500.0,0.00013874,2]
[347159810,1735530647214,-500.0,0.00013874,2]
[347159812,1735530647223,-501.60524402,0.00013874,2]
[347159814,1735530647233,-500.0,0.00013874,2]
[347159816,1735530647242,-500.0,0.00013874,2]
[347159818,1735530647251,-500.0,0.00013874,2]
[347159820,1735530647260,-500.0,0.00013874,2]
[347159822,1735530647269,-500.0,0.00013874,2]
[347159824,1735530647279,-500.0,0.00013874,2]
[347159826,1735530647289,-500.0,0.00013874,2]
[347159828,1735530647299,-500.0,0.00013874,2]
[347159830,1735530647308,-574.83,0.00013874,2]
[347159832,1735530647318,-500.0,0.00013874,2]
[347159834,1735530647327,-500.0,0.00013874,2]
[347159836,1735530647337,-500.0,0.00013874,2]
[347159838,1735530647346,-500.0,0.00013874,2]
[347159840,1735530647356,-503.40381298,0.00013874,2]
[347159842,1735530647365,-1376.96,0.00013874,2]
[347159844,1735530647374,-2614.02,0.00013874,2]
[347159846,1735530647384,-2614.02,0.00013874,2]
[347159848,1735530647393,-2614.02,0.00013874,2]
[347159850,1735530647402,-2614.02,0.00013874,2]
[347159851,1735530647412,-2614.11701257,0.00013874,2]
[347159853,1735530647421,-646.94,0.00013874,2]
[347159855,1735530647431,-646.94,0.00013874,2]
[347159857,1735530647440,-646.94,0.00013874,2]
[347159859,1735530647450,-500.0,0.00013874,2]
[347159860,1735530647459,-500.0,0.00013874,2]
[347159862,1735530647473,-503.2018599,0.00013874,2]
[347159864,1735530647483,-500.0,0.00013874,2]
[347159866,1735530647492,-503.82876462,0.00013874,2]
[347159867,1735530647502,-500.0,0.00013874,2]
[347159869,1735530647513,-500.0,0.00013874,2]
[347159871,1735530647522,-500.0,0.00013874,2]
[347159873,1735530647534,-500.0,0.00013874,2]
[347159875,1735530647545,-500.0,0.00013874,2]
[347159877,1735530647554,-500.0,0.00013874,2]
[347159879,1735530647564,-500.0,0.00013874,2]
[347159880,1735530647573,-500.0,0.00013874,2]
[347159881,1735530647583,-500.0,0.00013874,2]
[347159883,1735530647593,-527.93347276,0.00013874,2]
[347159885,1735530647602,-504.350125,0.00013874,2]
[347159886,1735530647611,-500.0,0.00013874,2]
[347159887,1735530647621,-500.0,0.00013874,2]
[347159888,1735530647631,-500.0,0.00013874,2]
[347159889,1735530647640,-500.0,0.00013874,2]
[347159890,1735530647650,-500.0,0.00013874,2]
[347159891,1735530647659,-502.47937163,0.00013874,2]
[347159892,1735530647669,-502.66673322,0.00013875,2]
[347159893,1735530647678,-500.0,0.00013875,2]
[347159894,1735530647688,-500.0,0.00013875,2]
[347159895,1735530647697,-507.87866054,0.00013875,2]
[347159896,1735530647707,-500.0,0.00013875,2]
[347159897,1735530647716,-505.37461683,0.00013875,2]
[347159898,1735530647725,-502.21293207,0.00013875,2]
[347159899,1735530647735,-516.3347003,0.00013875,2]
[347159900,1735530647744,-503.76193013,0.00013875,2]
[347159901,1735530647754,-506.03974183,0.00013875,2]
[347159902,1735530647763,-507.76017269,0.00013875,2]
[347159903,1735530647773,-503.76527761,0.00013875,2]
[347159904,1735530647783,-503.46576888,0.00013875,2]
[347159905,1735530647792,-503.94390834,0.00013875,2]
[347159906,1735530647801,-507.25396928,0.00013875,2]
[347159907,1735530647811,-581.52907814,0.00013875,2]
[347159908,1735530647820,-504.2968186,0.00013875,2]
[347159909,1735530647830,-501.72940036,0.00013875,2]
[347159910,1735530647839,-238.45497035,0.00013875,2]
[347159911,1735530647848,-502.76494433,0.00013875,2]
[347159912,1735530647857,-503.50870849,0.00013875,2]
[347159913,1735530647867,-501.47620404,0.00013875,2]
[347159914,1735530647876,-550.83429209,0.00013875,2]
[347159915,1735530647886,-500.0,0.00013875,2]
[347159916,1735530647895,-500.0,0.00013875,2]
[347159917,1735530647905,-503.21971003,0.00013875,2]
[347159918,1735530647915,-500.0,0.00013875,2]
[347159919,1735530647924,-575.43557147,0.00013875,2]
[347159920,1735530647933,-500.0,0.00013875,2]
[347159921,1735530647943,-501.73719282,0.00013875,2]
[347159922,1735530647952,-502.57302151,0.00013875,2]
[347159923,1735530647962,-502.8024777,0.00013875,2]
[347159924,1735530647972,-503.10665884,0.00013875,2]
[347159925,1735530647982,-503.97015443,0.00013875,2]
[347159926,1735530647991,-500.0,0.00013875,2]
[347159927,1735530648001,-504.44556353,0.00013875,2]
[347159928,1735530648010,-503.34563675,0.00013875,2]
[347159929,1735530648020,-500.0,0.00013875,2]
[347159930,1735530648030,-500.0,0.00013875,2]
[347159931,1735530648040,-509.44854795,0.00013875,2]
[347159932,1735530648050,-500.0,0.00013875,2]
[347159933,1735530648060,-500.0,0.00013875,2]
[347159934,1735530648070,-500.0,0.00013875,2]
[347159935,1735530648144,-507.7868198,0.00013875,2]
[347159936,1735530648154,-503.8741069,0.00013875,2]
[347159937,1735530648163,-505.77979966,0.00013875,2]
[347159938,1735530648173,-500.0,0.00013875,2]
[347159939,1735530648183,-500.0,0.00013875,2]
[347159940,1735530648192,-500.0,0.00013875,2]
[347159941,1735530648201,-500.0,0.00013875,2]
[347159942,1735530648211,-491.95752243,0.00013875,2]
[347159943,1735530648221,-502.51047285,0.00013875,2]
[347159944,1735530648231,-604.26313156,0.00013875,2]
[347159945,1735530648241,-530.02848492,0.00013875,2]
[347159946,1735530648251,-509.13395835,0.00013875,2]
[347159947,1735530648261,-520.10358866,0.00013875,2]
[347159948,1735530648270,-500.0,0.00013875,2]
[347159949,1735530648280,-509.79478455,0.00013875,2]
[347159950,1735530648290,-500.0,0.00013875,2]
[347159951,1735530648300,-504.61169402,0.00013875,2]
[347159952,1735530648310,-504.39487205,0.00013875,2]
[347159953,1735530648320,-500.0,0.00013875,2]
[347159954,1735530648330,-503.64265417,0.00013875,2]
[347159955,1735530648339,-500.0,0.00013875,2]
[347159956,1735530648348,-214.27216354,0.00013875,2]
[347159957,1735530648358,-500.0,0.00013875,2]
[347159958,1735530648368,-500.0,0.00013875,2]
[347159959,1735530648377,-500.0,0.00013875,2]
[347159960,1735530648388,-503.65668775,0.00013875,2]
[347159961,1735530648398,-500.0,0.00013875,2]
[347159962,1735530648408,-500.0,0.00013875,2]
[347159963,1735530648417,-539.43231961,0.00013875,2]
[347159964,1735530648427,-500.0,0.00013875,2]
[347159965,1735530648437,-504.59705988,0.00013875,2]
[347159966,1735530648447,-502.83661736,0.00013875,2]
[347159967,1735530648456,-501.01092951,0.00013875,2]
[347159968,1735530648470,-506.68054398,0.00013875,2]
[347159969,1735530648480,-501.99128868,0.00013875,2]
[347159970,1735530648490,-500.0,0.00013875,2]
[347159971,1735530648499,-505.07602194,0.00013875,2]
[347159972,1735530648510,-500.0,0.00013875,2]
[347159973,1735530648520,-501.66850296,0.00013875,2]
[347159974,1735530648531,-501.47646778,0.00013875,2]
[347159975,1735530648541,-501.57767643,0.00013875,2]
[347159976,1735530648551,-501.64201709,0.00013875,2]
[347159977,1735530648561,-224.13735021,0.00013876,2]
[347159978,1735530648571,-502.76397825,0.00013876,2]
[347159979,1735530648580,-500.0,0.00013876,2]
[347159980,1735530648590,-500.0,0.00013878,2]
[347159981,1735530648600,-400.0,0.00013973,2]
[347159982,1735530648610,-500.0,0.00014146,2]
[347159983,1735530648620,-500.0,0.00014146,2]
[347159984,1735530648630,-732.88,0.00014146,2]
[347159985,1735530648639,-500.0,0.00014146,2]
[347159986,1735530648649,-500.0,0.00014146,2]
[347159987,1735530648659,-500.0,0.00014146,2]
[347159988,1735530648668,-822.24,0.00014146,2]
[347159989,1735530648679,-731.92,0.00014147,2]
[347159990,1735530648688,-500.0,0.00014147,2]
[347159991,1735530648698,-646.94,0.00014147,2]
[347159992,1735530648708,-500.0,0.00014147,2]
[347159993,1735530648718,-500.0,0.00014147,2]
[347159994,1735530648728,-581.51,0.00014147,2]
[347159995,1735530648738,-500.0,0.00014147,2]
[347159996,1735530648751,-1303.74,0.00014147,2]
[347159997,1735530648761,-500.0,0.00014147,2]
[347159998,1735530648771,-500.0,0.00014147,2]